[Event "Champions Chess Tour Finals 2024"]
[Date "2024.12.17"]
[White "Aronian, Levon"]
[Black "Vachier-Lagrave, Maxime"]
[WhiteElo "2818"]
[BlackElo "2763"]
[Round "2.2"]
[Result "0-1"]
[TimeControl "600+2"]

1. e4 {[%clk 0:10:03]} c5 {[%clk 0:10:03]} 2. Nf3 {[%clk 0:10:04]} d6 {[%clk
0:10:04]} 3. Bb5+ {[%clk 0:10:05]} Bd7 {[%clk 0:10:04]} 4. Bxd7+ {[%clk
0:10:06]} Qxd7 {[%clk 0:10:05]} 5. O-O {[%clk 0:10:05]} Nc6 {[%clk 0:10:05]} 6.
c3 {[%clk 0:10:06]} d5 {[%clk 0:10:05]} 7. e5 {[%clk 0:09:53]} e6 {[%clk
0:09:34]} 8. d4 {[%clk 0:09:54]} Nge7 {[%clk 0:09:35]} 9. dxc5 {[%clk 0:09:31]}
Ng6 {[%clk 0:09:35]} 10. Re1 {[%clk 0:08:34]} Bxc5 {[%clk 0:09:35]} 11. Nbd2
{[%clk 0:08:35]} O-O {[%clk 0:09:10]} 12. Nb3 {[%clk 0:08:35]} Bb6 {[%clk
0:09:10]} 13. Be3 {[%clk 0:08:30]} Qc7 {[%clk 0:08:44]} 14. Bxb6 {[%clk
0:08:30]} Qxb6 {[%clk 0:08:45]} 15. Qd2 {[%clk 0:08:05]} f6 {[%clk 0:08:37]} 16.
exf6 {[%clk 0:07:49]} Rxf6 {[%clk 0:08:38]} 17. Nbd4 {[%clk 0:06:56]} Re8 {[%clk
0:07:35]} 18. Re3 {[%clk 0:06:08]} e5 {[%clk 0:07:18]} 19. Ne2 {[%clk 0:05:17]}
Rd8 {[%clk 0:07:05]} 20. h3 {[%clk 0:04:25]} e4 {[%clk 0:06:53]} 21. Nh2 {[%clk
0:04:06]} Nce5 {[%clk 0:06:27]} 22. b3 {[%clk 0:02:58]} Nd3 {[%clk 0:06:19]} 23.
Rf1 {[%clk 0:01:14]} Rdf8 {[%clk 0:04:42]} 24. Ng4 {[%clk 0:01:07]} R6f7 {[%clk
0:04:24]} 25. Rxd3 {[%clk 0:01:08]} exd3 {[%clk 0:04:25]} 26. Qxd3 {[%clk
0:01:09]} Rd8 {[%clk 0:03:43]} 27. Rd1 {[%clk 0:00:30]} Nf4 {[%clk 0:02:51]} 28.
Nxf4 {[%clk 0:00:29]} Rxf4 {[%clk 0:02:52]} 29. Ne3 {[%clk 0:00:16]} Kh8 {[%clk
0:02:51]} 30. Rd2 {[%clk 0:00:15]} Qe6 {[%clk 0:02:39]} 31. Nc2 {[%clk 0:00:09]}
Re4 {[%clk 0:02:28]} 32. c4 {[%clk 0:00:05]} d4 {[%clk 0:02:20]} 33. Ne3 {[%clk
0:00:04]} Qe5 {[%clk 0:01:59]} 34. Nf1 {[%clk 0:00:04]} Re1 {[%clk 0:01:58]} 35.
g3 {[%clk 0:00:04]} h6 {[%clk 0:01:54]} 36. Kg2 {[%clk 0:00:05]} Qe4+ {[%clk
0:01:45]} 37. Qxe4 {[%clk 0:00:06]} Rxe4 {[%clk 0:01:46]} 38. Ne3 {[%clk
0:00:08]} Rde8 {[%clk 0:01:23]} 39. Nf5 {[%clk 0:00:09]} Re2 {[%clk 0:01:19]}
40. Rxd4 {[%clk 0:00:10]} Rxa2 {[%clk 0:01:18]} 41. Rd7 {[%clk 0:00:06]} Ree2
{[%clk 0:01:17]} 42. g4 {[%clk 0:00:04]} Rxf2+ {[%clk 0:01:17]} 43. Kg3 {[%clk
0:00:06]} Rfb2 {[%clk 0:00:52]} 44. Nxg7 {[%clk 0:00:05]} Rxb3+ {[%clk 0:00:53]}
45. Kh4 {[%clk 0:00:06]} Rh2 {[%clk 0:00:46]} 46. Kh5 {[%clk 0:00:07]} Rhxh3+
{[%clk 0:00:47]} 47. Kg6 {[%clk 0:00:09]} Rb6+ {[%clk 0:00:48]} 48. Kf7 {[%clk
0:00:10]} Rf3+ {[%clk 0:00:44]} 49. Nf5 {[%clk 0:00:09]} h5 {[%clk 0:00:42]} 50.
Rd1 {[%clk 0:00:05]} Rf4 {[%clk 0:00:29]} 51. Rh1 {[%clk 0:00:05]} Rh6 {[%clk
0:00:30]} 52. Ke7 {[%clk 0:00:04]} Rh7+ {[%clk 0:00:29]} 53. Kf6 {[%clk
0:00:05]} hxg4 {[%clk 0:00:30]} 54. Rd1 {[%clk 0:00:06]} Rc7 {[%clk 0:00:24]}
55. Kg5 {[%clk 0:00:04]} Rxf5+ {[%clk 0:00:24]} 56. Kxf5 {[%clk 0:00:06]} g3
{[%clk 0:00:20]} 57. Rd8+ {[%clk 0:00:03]} Kh7 {[%clk 0:00:21]} 58. Rd1 {[%clk
0:00:03]} g2 {[%clk 0:00:21]} 0-1

[Variant "Standard"]
[Site "Europe Echecs"]

[Event "Champions Chess Tour Finals 2024"]
[Date "2024.12.17"]
[White "So, Wesley"]
[Black "Firouzja, Alireza"]
[WhiteElo "2826"]
[BlackElo "2756"]
[Round "2.2"]
[Result "1-0"]
[TimeControl "600+2"]

1. d4 {[%clk 0:10:02]} c6 {[%clk 0:10:04]} 2. c4 {[%clk 0:09:16]} d6 {[%clk
0:10:05]} 3. Nf3 {[%clk 0:09:03]} Nf6 {[%clk 0:10:03]} 4. Nc3 {[%clk 0:09:02]}
Qc7 {[%clk 0:09:52]} 5. e4 {[%clk 0:08:47]} e5 {[%clk 0:09:54]} 6. Be2 {[%clk
0:08:47]} Be7 {[%clk 0:09:53]} 7. O-O {[%clk 0:08:46]} Nbd7 {[%clk 0:09:53]} 8.
Qc2 {[%clk 0:08:22]} Nf8 {[%clk 0:09:50]} 9. Rd1 {[%clk 0:08:12]} Ng6 {[%clk
0:09:49]} 10. b4 {[%clk 0:07:58]} O-O {[%clk 0:09:44]} 11. h3 {[%clk 0:07:39]}
a5 {[%clk 0:09:00]} 12. b5 {[%clk 0:07:35]} Nd7 {[%clk 0:08:57]} 13. Rb1 {[%clk
0:07:06]} exd4 {[%clk 0:08:42]} 14. Nxd4 {[%clk 0:07:05]} Nc5 {[%clk 0:08:41]}
15. Be3 {[%clk 0:06:43]} Bf6 {[%clk 0:07:58]} 16. Nf5 {[%clk 0:06:01]} Be5
{[%clk 0:07:33]} 17. g3 {[%clk 0:05:32]} Re8 {[%clk 0:05:49]} 18. Bf3 {[%clk
0:04:59]} f6 {[%clk 0:03:40]} 19. Ne2 {[%clk 0:04:32]} Be6 {[%clk 0:03:24]} 20.
bxc6 {[%clk 0:03:45]} Qxc6 {[%clk 0:03:12]} 21. Bg2 {[%clk 0:03:29]} Na4 {[%clk
0:01:46]} 22. Rdc1 {[%clk 0:03:12]} Rec8 {[%clk 0:01:14]} 23. f4 {[%clk
0:02:56]} Bb2 {[%clk 0:00:49]} 24. Rxb2 {[%clk 0:02:49]} Nxb2 {[%clk 0:00:50]}
25. Qxb2 {[%clk 0:02:50]} Qd7 {[%clk 0:00:52]} 26. Rd1 {[%clk 0:02:38]} Qa4
{[%clk 0:00:26]} 27. Rxd6 {[%clk 0:02:26]} Qxc4 {[%clk 0:00:27]} 28. Ned4 {[%clk
0:01:29]} Qxa2 {[%clk 0:00:22]} 29. Qxb7 {[%clk 0:01:30]} Bf7 {[%clk 0:00:21]}
30. Nc6 {[%clk 0:01:25]} Re8 {[%clk 0:00:18]} 31. e5 {[%clk 0:01:03]} Qb3 {[%clk
0:00:16]} 32. Qxb3 {[%clk 0:00:50]} Bxb3 {[%clk 0:00:17]} 33. Ncd4 {[%clk
0:00:50]} Ba2 {[%clk 0:00:12]} 34. Bxa8 {[%clk 0:00:45]} 1-0

[Variant "Standard"]
[Site "Europe Echecs"]

[Event "Champions Chess Tour Finals 2024"]
[Date "2024.12.17"]
[White "Nepomniachtchi, Ian"]
[Black "Carlsen, Magnus"]
[WhiteElo "2758"]
[BlackElo "2838"]
[Round "2.2"]
[Result "1/2-1/2"]
[TimeControl "600+2"]

1. e4 {[%clk 0:10:02]} e5 {[%clk 0:10:03]} 2. Nf3 {[%clk 0:10:03]} Nc6 {[%clk
0:10:03]} 3. Bc4 {[%clk 0:10:04]} Bc5 {[%clk 0:10:02]} 4. d3 {[%clk 0:10:05]}
Nf6 {[%clk 0:10:02]} 5. Nc3 {[%clk 0:10:05]} h6 {[%clk 0:08:58]} 6. Be3 {[%clk
0:10:04]} Bb6 {[%clk 0:08:58]} 7. Bxb6 {[%clk 0:10:04]} axb6 {[%clk 0:08:59]} 8.
d4 {[%clk 0:10:06]} exd4 {[%clk 0:08:49]} 9. Nxd4 {[%clk 0:10:06]} O-O {[%clk
0:08:32]} 10. Ndb5 {[%clk 0:10:07]} Re8 {[%clk 0:08:03]} 11. O-O {[%clk
0:10:07]} d6 {[%clk 0:08:04]} 12. Re1 {[%clk 0:10:07]} Ne5 {[%clk 0:07:42]} 13.
Bf1 {[%clk 0:10:07]} Bd7 {[%clk 0:07:39]} 14. Qd2 {[%clk 0:09:16]} Ng6 {[%clk
0:06:03]} 15. a4 {[%clk 0:08:47]} Bxb5 {[%clk 0:05:56]} 16. Bxb5 {[%clk
0:08:45]} c6 {[%clk 0:05:57]} 17. Bf1 {[%clk 0:08:32]} Qc7 {[%clk 0:05:08]} 18.
Rad1 {[%clk 0:08:17]} Rad8 {[%clk 0:05:07]} 19. f4 {[%clk 0:08:16]} Nf8 {[%clk
0:03:51]} 20. g3 {[%clk 0:07:57]} Ne6 {[%clk 0:03:51]} 21. Bg2 {[%clk 0:07:54]}
b5 {[%clk 0:03:09]} 22. axb5 {[%clk 0:07:49]} cxb5 {[%clk 0:03:10]} 23. h3
{[%clk 0:07:26]} b4 {[%clk 0:03:04]} 24. Nd5 {[%clk 0:06:44]} Nxd5 {[%clk
0:03:04]} 25. exd5 {[%clk 0:06:46]} Qb6+ {[%clk 0:02:59]} 26. Kh2 {[%clk
0:06:47]} Nc5 {[%clk 0:02:59]} 27. b3 {[%clk 0:06:48]} Nd7 {[%clk 0:02:51]} 28.
g4 {[%clk 0:06:16]} Qc5 {[%clk 0:02:49]} 29. Re2 {[%clk 0:05:38]} Rxe2 {[%clk
0:02:39]} 30. Qxe2 {[%clk 0:05:39]} Nf6 {[%clk 0:02:30]} 31. Qc4 {[%clk
0:05:05]} Qxc4 {[%clk 0:02:04]} 32. bxc4 {[%clk 0:05:06]} Rc8 {[%clk 0:02:05]}
33. Bf1 {[%clk 0:04:40]} Ne4 {[%clk 0:02:05]} 34. Kg2 {[%clk 0:04:02]} Kf8
{[%clk 0:01:59]} 35. Rb1 {[%clk 0:03:56]} Nc5 {[%clk 0:01:45]} 36. Rxb4 {[%clk
0:03:55]} Ra8 {[%clk 0:01:47]} 37. Bd3 {[%clk 0:03:36]} Ra3 {[%clk 0:01:47]} 38.
g5 {[%clk 0:03:22]} hxg5 {[%clk 0:01:45]} 39. fxg5 {[%clk 0:03:23]} g6 {[%clk
0:01:46]} 40. h4 {[%clk 0:03:19]} Ra1 {[%clk 0:01:42]} 41. Rb2 {[%clk 0:02:41]}
Ke7 {[%clk 0:01:38]} 42. Be2 {[%clk 0:02:40]} Re1 {[%clk 0:01:35]} 43. Kf2
{[%clk 0:02:31]} Rh1 {[%clk 0:01:35]} 44. Kg3 {[%clk 0:02:32]} Re1 {[%clk
0:01:28]} 45. Kf2 {[%clk 0:02:32]} Rh1 {[%clk 0:01:29]} 46. Kg3 {[%clk 0:02:33]}
Re1 {[%clk 0:01:26]} 1/2-1/2

[Variant "Standard"]
[Site "Europe Echecs"]

[Event "Champions Chess Tour Finals 2024"]
[Date "2024.12.17"]
[White "Keymer, Vincent"]
[Black "Lazavik, Denis"]
[WhiteElo "2649"]
[BlackElo "2553"]
[Round "2.2"]
[Result "1/2-1/2"]
[TimeControl "600+2"]

1. Nf3 {[%clk 0:10:02]} d5 {[%clk 0:10:03]} 2. g3 {[%clk 0:10:03]} Nf6 {[%clk
0:10:04]} 3. Bg2 {[%clk 0:10:04]} e6 {[%clk 0:10:05]} 4. O-O {[%clk 0:10:04]}
Be7 {[%clk 0:10:06]} 5. d3 {[%clk 0:10:05]} O-O {[%clk 0:10:05]} 6. Nbd2 {[%clk
0:10:06]} Nc6 {[%clk 0:10:06]} 7. d4 {[%clk 0:10:07]} a5 {[%clk 0:09:51]} 8. c3
{[%clk 0:10:07]} b6 {[%clk 0:09:48]} 9. Qc2 {[%clk 0:10:07]} Bb7 {[%clk
0:09:10]} 10. e4 {[%clk 0:10:07]} dxe4 {[%clk 0:09:09]} 11. Nxe4 {[%clk
0:10:08]} Nxe4 {[%clk 0:09:07]} 12. Qxe4 {[%clk 0:10:09]} a4 {[%clk 0:09:08]}
13. Re1 {[%clk 0:10:06]} Na5 {[%clk 0:09:02]} 14. Qe2 {[%clk 0:10:02]} h6 {[%clk
0:08:52]} 15. Bf4 {[%clk 0:09:32]} Bd6 {[%clk 0:08:26]} 16. Be3 {[%clk 0:08:47]}
Bd5 {[%clk 0:08:08]} 17. Nd2 {[%clk 0:08:10]} Be7 {[%clk 0:07:57]} 18. Qg4
{[%clk 0:07:52]} Kh7 {[%clk 0:07:36]} 19. Qh5 {[%clk 0:06:59]} Bxg2 {[%clk
0:07:17]} 20. Kxg2 {[%clk 0:06:59]} c6 {[%clk 0:07:09]} 21. Kg1 {[%clk 0:06:39]}
Qd5 {[%clk 0:06:56]} 22. Qd1 {[%clk 0:06:39]} b5 {[%clk 0:06:56]} 23. Bf4 {[%clk
0:06:39]} Qd7 {[%clk 0:06:15]} 24. Qg4 {[%clk 0:06:14]} Bd6 {[%clk 0:04:25]} 25.
Bxd6 {[%clk 0:05:58]} Qxd6 {[%clk 0:04:26]} 26. Re5 {[%clk 0:05:45]} Rad8 {[%clk
0:04:17]} 27. Rae1 {[%clk 0:05:30]} Qc7 {[%clk 0:04:08]} 28. Qh4 {[%clk
0:04:32]} Rd5 {[%clk 0:03:57]} 29. g4 {[%clk 0:04:09]} Kg8 {[%clk 0:03:26]} 30.
Qg3 {[%clk 0:03:30]} Nc4 {[%clk 0:03:08]} 31. Nxc4 {[%clk 0:02:30]} bxc4 {[%clk
0:03:09]} 32. h4 {[%clk 0:01:17]} Rb8 {[%clk 0:02:56]} 33. R1e2 {[%clk 0:01:18]}
Rbb5 {[%clk 0:01:49]} 34. g5 {[%clk 0:00:55]} hxg5 {[%clk 0:01:36]} 35. hxg5
{[%clk 0:00:56]} Rxe5 {[%clk 0:01:37]} 36. dxe5 {[%clk 0:00:49]} Qd8 {[%clk
0:01:33]} 37. Kg2 {[%clk 0:00:34]} Qd3 {[%clk 0:01:16]} 38. Qg4 {[%clk 0:00:24]}
g6 {[%clk 0:00:46]} 39. a3 {[%clk 0:00:25]} Kf8 {[%clk 0:00:31]} 40. Qe4 {[%clk
0:00:13]} Qd5 {[%clk 0:00:11]} 41. Kg3 {[%clk 0:00:11]} Qd3+ {[%clk 0:00:07]}
42. Kg2 {[%clk 0:00:07]} Qd5 {[%clk 0:00:07]} 43. Kg3 {[%clk 0:00:06]} Qd3+
{[%clk 0:00:08]} 44. Kg2 {[%clk 0:00:05]} Qd5 {[%clk 0:00:08]} 1/2-1/2

[Variant "Standard"]
[Site "Europe Echecs"]

[Event "Champions Chess Tour Finals 2024"]
[Date "2024.12.17"]
[White "Lazavik, Denis"]
[Black "Keymer, Vincent"]
[WhiteElo "2553"]
[BlackElo "2649"]
[Round "2.3"]
[Result "1-0"]
[TimeControl "600+2"]

1. c4 {[%clk 0:09:58]} e6 {[%clk 0:06:58]} 2. Nc3 {[%clk 0:09:57]} d5 {[%clk
0:06:57]} 3. d4 {[%clk 0:09:54]} Nf6 {[%clk 0:06:56]} 4. cxd5 {[%clk 0:09:52]}
exd5 {[%clk 0:06:55]} 5. Bg5 {[%clk 0:09:50]} Be7 {[%clk 0:06:53]} 6. e3 {[%clk
0:09:49]} h6 {[%clk 0:06:52]} 7. Bh4 {[%clk 0:09:48]} O-O {[%clk 0:06:50]} 8.
Bd3 {[%clk 0:09:47]} c6 {[%clk 0:06:49]} 9. Nge2 {[%clk 0:09:44]} Nbd7 {[%clk
0:06:42]} 10. O-O {[%clk 0:09:42]} Re8 {[%clk 0:06:40]} 11. a4 {[%clk 0:09:40]}
Nh5 {[%clk 0:06:08]} 12. Bxe7 {[%clk 0:09:39]} Qxe7 {[%clk 0:06:07]} 13. a5
{[%clk 0:09:38]} g6 {[%clk 0:06:02]} 14. Qd2 {[%clk 0:09:11]} Ndf6 {[%clk
0:06:00]} 15. Rfe1 {[%clk 0:08:54]} Ng7 {[%clk 0:05:43]} 16. Ng3 {[%clk
0:08:49]} h5 {[%clk 0:04:43]} 17. e4 {[%clk 0:07:45]} h4 {[%clk 0:04:39]} 18.
exd5 {[%clk 0:07:39]} Qd8 {[%clk 0:04:38]} 19. Nge4 {[%clk 0:07:16]} Nxd5 {[%clk
0:04:15]} 20. h3 {[%clk 0:06:35]} Bf5 {[%clk 0:04:06]} 21. Qh6 {[%clk 0:05:13]}
Bxe4 {[%clk 0:04:05]} 22. Bxe4 {[%clk 0:05:12]} Nxc3 {[%clk 0:03:55]} 23. bxc3
{[%clk 0:05:11]} Qf6 {[%clk 0:03:54]} 24. Bf3 {[%clk 0:04:56]} Rad8 {[%clk
0:03:15]} 25. Rab1 {[%clk 0:04:51]} Rxe1+ {[%clk 0:03:04]} 26. Rxe1 {[%clk
0:04:50]} Re8 {[%clk 0:03:03]} 27. Rb1 {[%clk 0:04:47]} Re7 {[%clk 0:02:52]} 28.
Qd2 {[%clk 0:04:30]} Nf5 {[%clk 0:02:38]} 29. Qf4 {[%clk 0:03:38]} Qd6 {[%clk
0:02:37]} 30. Qg5 {[%clk 0:03:37]} Kg7 {[%clk 0:02:33]} 31. Bg4 {[%clk 0:03:34]}
Qf6 {[%clk 0:02:31]} 32. Qd2 {[%clk 0:03:20]} Nd6 {[%clk 0:02:30]} 33. Qa2
{[%clk 0:03:15]} Ne4 {[%clk 0:02:26]} 34. Qc2 {[%clk 0:03:14]} Nd6 {[%clk
0:02:06]} 35. Qd3 {[%clk 0:03:06]} Qf4 {[%clk 0:01:59]} 36. Bf3 {[%clk 0:02:42]}
a6 {[%clk 0:01:51]} 37. c4 {[%clk 0:02:39]} Nf5 {[%clk 0:01:47]} 38. Rd1 {[%clk
0:02:39]} Qd6 {[%clk 0:01:30]} 39. d5 {[%clk 0:02:36]} c5 {[%clk 0:01:29]} 40.
Be2 {[%clk 0:02:18]} Nd4 {[%clk 0:01:27]} 41. Bf1 {[%clk 0:02:18]} Qf6 {[%clk
0:01:26]} 42. Rb1 {[%clk 0:02:14]} Qf4 {[%clk 0:01:24]} 43. Qa3 {[%clk 0:02:08]}
Ne2+ {[%clk 0:01:05]} 44. Bxe2 {[%clk 0:02:06]} Rxe2 {[%clk 0:01:04]} 45. Qxc5
{[%clk 0:02:02]} Rc2 {[%clk 0:00:56]} 46. Qe3 {[%clk 0:01:17]} Rxc4 {[%clk
0:00:55]} 47. Qxf4 {[%clk 0:00:48]} Rxf4 {[%clk 0:00:54]} 48. d6 {[%clk
0:00:47]} Rd4 {[%clk 0:00:48]} 49. Rxb7 {[%clk 0:00:47]} Rxd6 {[%clk 0:00:46]}
50. Rb6 {[%clk 0:00:46]} Rd1+ {[%clk 0:00:44]} 51. Kh2 {[%clk 0:00:45]} Rd2
{[%clk 0:00:44]} 52. f3 {[%clk 0:00:45]} Ra2 {[%clk 0:00:43]} 53. Rxa6 {[%clk
0:00:44]} Ra1 {[%clk 0:00:41]} 54. Ra7 {[%clk 0:00:43]} g5 {[%clk 0:00:40]} 55.
Ra8 {[%clk 0:00:39]} Kh7 {[%clk 0:00:39]} 56. Ra6 {[%clk 0:00:37]} Kg7 {[%clk
0:00:38]} 57. Ra8 {[%clk 0:00:34]} Kh7 {[%clk 0:00:38]} 58. a6 {[%clk 0:00:33]}
Kg7 {[%clk 0:00:37]} 59. a7 {[%clk 0:00:29]} Kh7 {[%clk 0:00:36]} 60. g4 {[%clk
0:00:29]} hxg3+ {[%clk 0:00:23]} 61. Kxg3 {[%clk 0:00:29]} Ra4 {[%clk 0:00:23]}
62. Kf2 {[%clk 0:00:28]} Kg7 {[%clk 0:00:23]} 63. Ke3 {[%clk 0:00:28]} Ra1
{[%clk 0:00:23]} 64. Kd4 {[%clk 0:00:28]} Ra5 {[%clk 0:00:22]} 65. Kc4 {[%clk
0:00:28]} Ra1 {[%clk 0:00:22]} 66. Kc5 {[%clk 0:00:23]} Ra2 {[%clk 0:00:21]} 67.
Kb6 {[%clk 0:00:23]} Rb2+ {[%clk 0:00:21]} 68. Kc6 {[%clk 0:00:23]} Rc2+ {[%clk
0:00:21]} 69. Kd6 {[%clk 0:00:22]} Ra2 {[%clk 0:00:21]} 70. Ke5 {[%clk 0:00:15]}
Ra5+ {[%clk 0:00:21]} 71. Ke4 {[%clk 0:00:15]} Ra4+ {[%clk 0:00:22]} 72. Kf5
{[%clk 0:00:14]} Ra5+ {[%clk 0:00:22]} 73. Kg4 {[%clk 0:00:14]} Kh7 {[%clk
0:00:22]} 74. Re8 {[%clk 0:00:06]} Rxa7 {[%clk 0:00:21]} 75. Kxg5 {[%clk
0:00:07]} Kg7 {[%clk 0:00:20]} 76. h4 {[%clk 0:00:07]} Ra1 {[%clk 0:00:17]} 77.
Re4 {[%clk 0:00:07]} Ra5+ {[%clk 0:00:17]} 78. Kf4 {[%clk 0:00:08]} Ra1 {[%clk
0:00:17]} 79. Re5 {[%clk 0:00:07]} Ra4+ {[%clk 0:00:16]} 80. Kg3 {[%clk
0:00:07]} f6 {[%clk 0:00:16]} 81. Rb5 {[%clk 0:00:06]} Ra1 {[%clk 0:00:16]} 82.
Kg4 {[%clk 0:00:06]} Ra4+ {[%clk 0:00:15]} 83. f4 {[%clk 0:00:06]} Kg6 {[%clk
0:00:07]} 84. h5+ {[%clk 0:00:06]} Kh6 {[%clk 0:00:07]} 85. Rb6 {[%clk 0:00:06]}
Kg7 {[%clk 0:00:07]} 86. Rb7+ {[%clk 0:00:05]} Kh6 {[%clk 0:00:07]} 87. Rf7
{[%clk 0:00:05]} Ra6 {[%clk 0:00:08]} 88. Kf5 {[%clk 0:00:05]} Ra4 {[%clk
0:00:04]} 89. Rxf6+ {[%clk 0:00:04]} Kxh5 {[%clk 0:00:04]} 90. Re6 {[%clk
0:00:04]} Rb4 {[%clk 0:00:03]} 91. Re8 {[%clk 0:00:04]} Kh6 {[%clk 0:00:03]} 92.
Re7 {[%clk 0:00:04]} Ra4 {[%clk 0:00:03]} 93. Ke5 {[%clk 0:00:03]} Ra5+ {[%clk
0:00:03]} 94. Kf6 {[%clk 0:00:03]} Ra6+ {[%clk 0:00:03]} 95. Re6 {[%clk
0:00:04]} Ra5 {[%clk 0:00:03]} 96. f5 {[%clk 0:00:03]} Kh7 {[%clk 0:00:04]} 97.
Re7+ {[%clk 0:00:03]} Kh6 {[%clk 0:00:04]} 98. Re8 {[%clk 0:00:04]} Kh7 {[%clk
0:00:04]} 99. Re7+ {[%clk 0:00:04]} Kh6 {[%clk 0:00:05]} 100. Ke6 {[%clk
0:00:04]} Ra6+ {[%clk 0:00:05]} 101. Kf7 {[%clk 0:00:04]} Ra5 {[%clk 0:00:05]}
102. f6 {[%clk 0:00:04]} Kg5 {[%clk 0:00:05]} 103. Kg7 {[%clk 0:00:05]} Ra6
{[%clk 0:00:04]} 104. f7 {[%clk 0:00:05]} Rg6+ {[%clk 0:00:04]} 105. Kf8 {[%clk
0:00:05]} Ra6 {[%clk 0:00:03]} 106. Rd7 {[%clk 0:00:03]} Kf6 {[%clk 0:00:03]}
107. Kg8 {[%clk 0:00:04]} 1-0

[Variant "Standard"]
[Site "Europe Echecs"]

[Event "Champions Chess Tour Finals 2024"]
[Date "2024.12.19"]
[White "Nepomniachtchi, Ian"]
[Black "Lazavik, Denis"]
[WhiteElo "2758"]
[BlackElo "2553"]
[Round "2.1"]
[Result "1/2-1/2"]
[TimeControl "600+2"]

1. e4 {[%clk 0:10:02]} c5 {[%clk 0:10:02]} 2. Nf3 {[%clk 0:10:02]} Nc6 {[%clk
0:10:03]} 3. Bb5 {[%clk 0:10:01]} e6 {[%clk 0:10:03]} 4. O-O {[%clk 0:10:00]}
Nge7 {[%clk 0:10:03]} 5. d4 {[%clk 0:10:01]} cxd4 {[%clk 0:10:02]} 6. Nxd4
{[%clk 0:10:01]} Ng6 {[%clk 0:09:58]} 7. Be3 {[%clk 0:10:00]} Be7 {[%clk
0:09:57]} 8. Be2 {[%clk 0:09:55]} O-O {[%clk 0:09:54]} 9. c4 {[%clk 0:09:56]}
Nxd4 {[%clk 0:09:51]} 10. Qxd4 {[%clk 0:09:56]} b6 {[%clk 0:09:44]} 11. Nc3
{[%clk 0:09:57]} Bb7 {[%clk 0:09:26]} 12. Rad1 {[%clk 0:09:58]} Bc6 {[%clk
0:09:25]} 13. Qd2 {[%clk 0:09:59]} Bb4 {[%clk 0:09:05]} 14. f3 {[%clk 0:10:00]}
Qf6 {[%clk 0:08:39]} 15. Rc1 {[%clk 0:10:00]} Rfd8 {[%clk 0:08:07]} 16. a3
{[%clk 0:09:59]} Bc5 {[%clk 0:08:06]} 17. b4 {[%clk 0:09:59]} Bxe3+ {[%clk
0:08:06]} 18. Qxe3 {[%clk 0:10:00]} Qf4 {[%clk 0:07:52]} 19. Qxf4 {[%clk
0:09:10]} Nxf4 {[%clk 0:07:52]} 20. Rfd1 {[%clk 0:09:12]} Kf8 {[%clk 0:07:35]}
21. Bf1 {[%clk 0:08:54]} g5 {[%clk 0:07:33]} 22. Kf2 {[%clk 0:08:51]} Ke7 {[%clk
0:07:31]} 23. Ke3 {[%clk 0:08:46]} Ng6 {[%clk 0:07:15]} 24. Ne2 {[%clk 0:08:01]}
Rac8 {[%clk 0:06:57]} 25. Nd4 {[%clk 0:07:59]} h5 {[%clk 0:06:47]} 26. Rd3
{[%clk 0:07:30]} Ne5 {[%clk 0:05:25]} 27. Rdc3 {[%clk 0:07:31]} d6 {[%clk
0:05:25]} 28. g3 {[%clk 0:06:00]} Nd7 {[%clk 0:04:59]} 29. Be2 {[%clk 0:05:48]}
Bb7 {[%clk 0:04:53]} 30. Nb3 {[%clk 0:04:27]} Rc7 {[%clk 0:04:36]} 31. a4 {[%clk
0:03:36]} h4 {[%clk 0:04:14]} 32. a5 {[%clk 0:03:35]} hxg3 {[%clk 0:04:11]} 33.
hxg3 {[%clk 0:03:37]} Rh8 {[%clk 0:03:32]} 34. axb6 {[%clk 0:03:31]} axb6 {[%clk
0:03:33]} 35. Nd4 {[%clk 0:03:22]} Nf6 {[%clk 0:03:19]} 36. c5 {[%clk 0:02:23]}
bxc5 {[%clk 0:02:25]} 37. bxc5 {[%clk 0:02:24]} dxc5 {[%clk 0:02:13]} 38. Rxc5
{[%clk 0:02:25]} Rxc5 {[%clk 0:02:11]} 39. Rxc5 {[%clk 0:02:26]} Rc8 {[%clk
0:02:07]} 40. Rxg5 {[%clk 0:02:22]} Rc3+ {[%clk 0:02:07]} 41. Kd2 {[%clk
0:02:11]} Ra3 {[%clk 0:02:07]} 42. Rb5 {[%clk 0:01:57]} Bxe4 {[%clk 0:02:05]}
43. fxe4 {[%clk 0:01:38]} Nxe4+ {[%clk 0:02:06]} 44. Kc2 {[%clk 0:01:31]} Rxg3
{[%clk 0:01:59]} 45. Rb3 {[%clk 0:01:23]} 1/2-1/2

[Variant "Standard"]
[Site "Europe Echecs"]

[Event "Champions Chess Tour Finals 2024"]
[Date "2024.12.19"]
[White "Lazavik, Denis"]
[Black "Nepomniachtchi, Ian"]
[WhiteElo "2553"]
[BlackElo "2758"]
[Round "2.2"]
[Result "0-1"]
[TimeControl "600+2"]

1. d4 {[%clk 0:10:02]} Nf6 {[%clk 0:10:03]} 2. Bg5 {[%clk 0:10:02]} e6 {[%clk
0:09:50]} 3. Nd2 {[%clk 0:10:01]} d5 {[%clk 0:09:47]} 4. e3 {[%clk 0:09:58]} c5
{[%clk 0:09:32]} 5. c3 {[%clk 0:09:55]} Be7 {[%clk 0:09:26]} 6. Bd3 {[%clk
0:09:52]} b6 {[%clk 0:09:13]} 7. Ngf3 {[%clk 0:09:42]} O-O {[%clk 0:09:11]} 8.
Ne5 {[%clk 0:09:13]} Nfd7 {[%clk 0:08:57]} 9. Qh5 {[%clk 0:07:13]} f5 {[%clk
0:08:58]} 10. Nxd7 {[%clk 0:06:55]} Nxd7 {[%clk 0:08:42]} 11. Bxe7 {[%clk
0:06:28]} Qxe7 {[%clk 0:08:43]} 12. g4 {[%clk 0:06:14]} cxd4 {[%clk 0:06:58]}
13. cxd4 {[%clk 0:06:07]} g6 {[%clk 0:06:37]} 14. Qh3 {[%clk 0:04:52]} fxg4
{[%clk 0:06:37]} 15. Qxg4 {[%clk 0:04:15]} e5 {[%clk 0:06:38]} 16. Qg2 {[%clk
0:04:14]} Nf6 {[%clk 0:05:52]} 17. O-O-O {[%clk 0:03:23]} Bg4 {[%clk 0:05:14]}
18. f3 {[%clk 0:03:13]} e4 {[%clk 0:04:54]} 19. fxg4 {[%clk 0:00:44]} exd3
{[%clk 0:04:55]} 20. Kb1 {[%clk 0:00:46]} Rac8 {[%clk 0:04:09]} 21. Rhf1 {[%clk
0:00:12]} Rc2 {[%clk 0:03:42]} 22. Qf3 {[%clk 0:00:12]} Ne4 {[%clk 0:02:42]} 23.
Qxf8+ {[%clk 0:00:13]} Qxf8 {[%clk 0:02:43]} 24. Rxf8+ {[%clk 0:00:13]} Kxf8
{[%clk 0:02:45]} 25. Nf3 {[%clk 0:00:13]} Rf2 {[%clk 0:02:35]} 26. Ne5 {[%clk
0:00:13]} d2 {[%clk 0:02:25]} 27. h4 {[%clk 0:00:10]} Re2 {[%clk 0:02:17]} 28.
Kc2 {[%clk 0:00:11]} Rxe3 {[%clk 0:02:18]} 29. Rf1+ {[%clk 0:00:06]} Ke7 {[%clk
0:02:17]} 30. Nf3 {[%clk 0:00:04]} Re2 {[%clk 0:02:02]} 31. Rd1 {[%clk 0:00:04]}
Rg2 {[%clk 0:01:53]} 32. g5 {[%clk 0:00:04]} Ke6 {[%clk 0:01:50]} 33. Nxd2
{[%clk 0:00:03]} Kf5 {[%clk 0:01:43]} 0-1

[Variant "Standard"]
[Site "Europe Echecs"]